bitfinex/quotes_ETHUSD_20250331
["timestamp","ask_amount","ask_price","bid_price","bid_amount"]
[1743454824730,6.25154,1826.7,1826.1,0.05]
[1743454824920,5.47471,1826.6,1826.1,10.3]
[1743454825429,6.25154,1826.7,1826.1,10.3]
[1743454825633,6.24955,1827.3,1826.3,8.47537]
[1743454825932,6.24955,1827.3,1826.4,21.3631]
[1743454825933,5.47316,1827.1,1826.4,21.3631]
[1743454826229,6.24971,1827.3,1826.6,6.28334]
[1743454826402,11.72253,1827.3,1826.7,0.683067]
[1743454826597,6.24971,1827.3,1826.8,5.655]
[1743454826808,5.47299,1827.2,1826.8,5.655]
[1743454827247,10.94605,1827.2,1826.8,5.655]
[1743454827460,5.47344,1827.1,1826.6,11.0588]
[1743454827736,5.47355,1827.0,1826.8,5.648]
[1743454828105,10.9472,1827.0,1826.8,5.648]
[1743454828345,5.47355,1827.0,1826.8,5.648]
[1743454828550,5.47318,1827.1,1826.8,5.648]
[1743454828838,5.47319,1827.1,1826.8,5.648]
[1743454829042,10.94601,1827.2,1826.8,5.648]
[1743454829837,5.47315,1827.1,1826.8,5.648]
[1743454830040,10.9465,1827.1,1826.8,5.648]
[1743454830247,5.47315,1827.1,1826.8,5.648]
[1743454830545,5.47363,1827.0,1826.8,5.648]
[1743454830773,5.47394,1826.9,1826.7,0.91385243]
[1743454831269,10.94794,1826.9,1826.7,0.91385243]
[1743454831631,5.47324,1827.1,1826.7,0.91385243]
[1743454831830,5.47345,1827.0,1826.7,0.5076958]
[1743454832372,0.777,1827.3,1826.4,42.71624]
[1743454832533,0.777,1827.3,1826.4,47.491]
[1743454832534,5.47356,1827.0,1826.4,47.491]
[1743454833478,5.47356,1827.0,1826.5,0.40635384]
[1743454833980,1.324135,1827.7,1826.6,11.5777]
[1743454834273,5.47085,1827.9,1827.0,6.25109]
[1743454834453,5.47085,1827.9,1827.1,0.625109]
[1743454834454,5.47105,1827.8,1827.1,0.625109]
[1743454834638,5.47105,1827.8,1827.0,11.0277]
[1743454834639,5.47258,1827.3,1827.0,15.934]
[1743454834838,0.777,1827.5,1826.7,12.59187669]
[1743454835067,5.47267,1827.3,1826.8,5.685]
[1743454835435,0.777,1827.5,1826.8,5.685]
[1743454835653,5.47258,1827.3,1826.8,5.685]
[1743454835854,10.94534,1827.3,1826.9,0.5080282]
[1743454836029,5.47285,1827.2,1826.9,0.5080282]
[1743454836365,5.47285,1827.2,1826.9,0.91438204]
[1743454836568,10.94539,1827.3,1826.9,0.91438204]
[1743454837066,1.094539,1827.3,1826.9,0.91438204]
[1743454837366,10.94678,1827.1,1826.9,0.40635384]
[1743454837758,5.47345,1827.0,1826.9,0.40635384]
[1743454837959,5.47345,1827.0,1826.8,6.08935384]
[1743454838170,5.47345,1827.0,1826.8,0.40635384]
[1743454838777,5.47375,1826.9,1826.8,0.40635384]
[1743454839464,5.47375,1826.9,1826.6,1.15840203]
[1743454839465,5.47375,1826.9,1826.5,5.678]
[1743454839860,5.47289,1827.2,1826.7,0.7777]
[1743454840047,11.7223,1827.3,1826.7,0.83243522]
[1743454840374,6.24959,1827.3,1826.7,6.81538314]
[1743454840539,11.72233,1827.3,1826.7,1.34118314]
[1743454841068,5.47293,1827.2,1826.7,1.34118314]
[1743454841275,5.47327,1827.1,1826.7,1.28644792]
[1743454841571,5.47293,1827.2,1826.8,0.50876678]
[1743454841894,5.47249,1827.4,1826.9,5.682]
[1743454842082,5.47257,1827.3,1826.9,5.682]
[1743454842246,5.47235,1827.4,1826.9,6.30107668]
[1743454842589,0.05,1827.4,1826.9,22.02481668]
[1743454843051,0.05,1827.4,1827.0,0.56349238]
[1743454843249,0.05,1827.4,1827.0,6.03682238]
[1743454843454,0.05,1827.5,1827.2,0.7777]
[1743454843655,5.52167,1827.6,1827.2,0.7777]
[1743454843882,0.05,1827.6,1827.3,5.675]
[1743454844393,10.99362,1827.6,1827.3,6.18376678]
[1743454844673,5.47225,1827.4,1827.3,0.50876678]
[1743454844876,6.25895,1827.4,1827.3,0.50876678]
[1743454845761,16.066584,1827.4,1826.6,6.4548]
[1743454845965,5.47375,1826.9,1826.6,0.7818]
[1743454846159,5.47375,1826.9,1826.6,6.4538]
[1743454846775,5.47375,1826.9,1826.8,31.028]
[1743454847271,5.47375,1826.9,1826.8,31.53771172]
[1743454847672,5.47375,1826.9,1826.8,31.94547946]
[1743454850260,5.47346,1827.0,1826.8,31.94547946]
[1743454850461,10.94709,1827.0,1826.8,31.94547946]
[1743454850656,0.05,1827.6,1826.9,0.7641]
[1743454850862,0.28596312,1827.8,1826.9,0.7641]
[1743454850863,0.05,1827.7,1827.6,9.78575]
[1743454851048,11.27413747,1828.5,1827.7,15.72116]
[1743454851247,6.25963,1828.4,1827.8,5.807]
[1743454851453,5.46973,1828.3,1827.8,5.807]
[1743454851653,5.46956,1828.3,1827.8,5.807]
[1743454851884,5.46996,1828.2,1827.9,0.51041622]
[1743454852381,5.51897,1828.5,1827.9,1.57153192]
[1743454852595,5.4699,1828.2,1827.9,1.57153192]
[1743454852903,5.47033,1828.1,1827.9,1.57153192]
[1743454853058,5.47033,1828.1,1827.9,1.0611157]
[1743454853255,5.4699,1828.2,1827.9,1.0611157]
[1743454853595,10.93997,1828.2,1827.9,1.0611157]
[1743454853748,5.47046,1828.0,1827.6,42.5911]
[1743454853945,5.47059,1828.0,1827.6,31.577]
[1743454854167,5.47045,1828.0,1827.6,31.577]
[1743454854374,5.47127,1827.8,1827.6,31.577]
[1743454854787,5.47079,1827.9,1827.6,31.577]
[1743454854967,5.47116,1827.8,1827.6,31.577]
[1743454856461,5.47116,1827.8,1827.7,0.51063489]
[1743454856657,10.94178,1827.9,1827.7,0.51063489]
[1743454856974,5.47079,1827.9,1827.7,0.51063489]
[1743454857377,3.7902,1828.1,1827.7,0.51063489]
[1743454857606,5.47078,1827.9,1827.7,0.51063489]
[1743454857779,5.47078,1827.9,1827.6,31.577]
[1743454858420,0.7902,1828.1,1827.6,31.577]
[1743454858717,5.47045,1828.0,1827.6,31.577]
[1743454859074,5.47134,1827.8,1827.6,31.577]
[1743454859275,5.47135,1827.7,1827.6,31.577]
[1743454860218,5.47206,1827.5,1827.2,11.0331]
[1743454860422,5.47134,1827.8,1826.9,16.8141]
[1743454860423,5.47228,1827.4,1826.9,16.8141]
[1743454861028,5.4715,1827.7,1827.0,5.4733]
[1743454861503,5.4715,1827.7,1827.1,5.47298]
[1743454861824,5.47137,1827.7,1827.2,0.7831]
[1743454862021,5.47175,1827.6,1827.2,1.29354887]
[1743454863226,5.47175,1827.6,1827.2,0.7831]
[1743454863894,5.47137,1827.7,1827.2,0.7831]
[1743454864089,10.94291,1827.7,1827.2,0.7831]
[1743454864311,5.47137,1827.7,1827.2,0.7831]
[1743454864723,5.47018,1828.1,1827.3,16.07671823]
[1743454865022,0.8222,1828.2,1827.5,0.7872]
[1743454865223,6.29215,1828.2,1827.6,5.52625599]
[1743454865387,6.29215,1828.2,1827.7,5.769]
[1743454865579,6.29215,1828.2,1827.7,5.82370676]
[1743454865781,11.76225,1828.2,1827.7,5.82370676]
[1743454866008,0.8222,1828.2,1827.7,11.29504676]
[1743454866309,5.46968,1828.3,1827.8,0.05470372]
[1743454866488,5.46968,1828.3,1827.8,0.8830009]
[1743454866816,5.46968,1828.3,1827.8,0.82829718]
[1743454868334,6.29146,1828.4,1827.8,16.54932718]
[1743454868521,5.46956,1828.3,1827.9,0.7872]
[1743454868829,6.29146,1828.4,1827.9,0.7872]
[1743454869140,0.05,1828.5,1827.9,1.4185456]
[1743454869344,5.47025,1828.1,1827.8,10.25]
[1743454869494,6.25456,1828.3,1827.8,10.25]
[1743454869694,5.47075,1827.9,1827.8,10.25]
[1743454870728,5.4712,1827.8,1827.4,0.05471148]
[1743454870928,8.4697,1828.3,1827.4,0.05471148]
[1743454870929,5.47055,1828.0,1827.4,0.05471728]
[1743454871230,5.47076,1827.9,1827.4,0.05471728]
[1743454871902,10.94123,1828.0,1827.4,0.05471728]
[1743454873003,5.47019,1828.1,1827.5,0.7851]
[1743454873202,10.9406,1828.1,1827.5,0.7851]
[1743454873634,5.47048,1828.0,1827.5,0.7851]
[1743454873840,5.47019,1828.1,1827.5,0.7851]
[1743454874035,10.9406,1828.1,1827.5,0.7851]
[1743454874332,5.47056,1828.0,1827.5,11.0351]
[1743454874544,5.47056,1828.0,1827.6,10.25]
[1743454874714,5.47077,1827.9,1827.6,10.25]
[1743454875632,5.47082,1827.9,1827.6,10.25]
[1743454875837,0.8387,1828.5,1827.7,15.999]
[1743454876044,10.93899,1828.4,1827.9,0.7851]
[1743454876625,5.46959,1828.3,1827.9,0.7851]
[1743454877221,5.47044,1828.1,1827.8,10.25]
[1743454877521,5.47044,1828.1,1827.7,6.5381]
[1743454878327,5.4699,1828.2,1827.7,6.5381]
[1743454878532,10.93996,1828.2,1827.7,6.5381]
[1743454879439,5.47017,1828.1,1827.7,6.5381]
[1743454879833,10.9405,1828.1,1827.7,6.5381]
[1743454880343,5.47017,1828.1,1827.7,6.5381]
[1743454880540,5.47031,1828.1,1827.7,5.753]
[1743454881352,5.46991,1828.2,1827.7,5.753]
[1743454881661,10.93992,1828.2,1827.7,5.753]
[1743454881954,10.93995,1828.2,1827.8,0.40966429]
[1743454882255,10.93997,1828.2,1827.8,0.40966429]
[1743454882553,5.46973,1828.3,1827.8,0.46436923]
[1743454882711,5.47019,1828.1,1827.8,0.46436923]
[1743454882909,5.47019,1828.1,1827.8,0.40966429]
[1743454883126,5.47019,1828.1,1827.7,5.753]
[1743454883862,5.47019,1828.1,1827.7,6.26511023]
[1743454884046,0.05,1828.5,1827.9,3.0]
[1743454884365,0.05,1828.8,1828.3,0.752]
[1743454884663,0.05,1828.8,1828.5,0.752]
[1743454884959,0.05,1828.8,1828.6,0.05467769]
[1743454885321,0.05,1828.8,1828.5,11.002]
[1743454885868,0.05,1828.8,1828.6,0.40897209]
[1743454886415,0.05,1828.8,1828.6,10.65897209]
[1743454887425,0.05,1828.8,1828.6,10.25]
[1743454888041,0.05,1828.8,1828.7,0.752]
[1743454892859,0.05,1828.8,1828.6,10.25]
[1743454893033,5.51807,1828.8,1828.6,10.25]
[1743454893368,0.05,1828.8,1828.5,0.40806336]
[1743454893567,5.51819,1828.8,1828.5,0.40806336]
[1743454894675,5.51819,1828.8,1828.4,31.559]
[1743454895045,0.05,1828.8,1828.4,31.559]
[1743454895243,5.5181,1828.8,1828.4,31.559]
[1743454896445,5.51782,1828.9,1828.7,0.8181]
[1743454896446,0.05,1828.9,1828.7,0.8181]
[1743454896663,0.05,1828.9,1828.8,5.913]
[1743454896859,0.05,1828.9,1828.8,16.163]
[1743454898943,0.05,1828.9,1828.8,10.25]
[1743454899142,0.05,1828.9,1828.8,16.145]
[1743454899755,0.05,1828.9,1828.8,16.144]
[1743454900355,0.05,1828.9,1828.8,10.25]
[1743454900566,0.05,1828.9,1828.8,10.30467416]
[1743454900771,0.05,1828.9,1828.8,16.19267416]
[1743454900985,0.05,1828.9,1828.8,16.138]
[1743454903860,0.05,1828.9,1828.8,5.888]
[1743454904058,0.05,1828.9,1828.8,5.94267416]
[1743454904263,0.05,1828.9,1828.8,16.138]
[1743454905095,0.05,1828.9,1828.8,24.60606]
[1743454905399,0.05,1828.9,1828.8,19.9267]
[1743454905984,0.05,1828.9,1828.8,20.33397258]
[1743454907516,0.05,1828.9,1828.8,20.98547576]
[1743454907814,0.05,1828.9,1828.8,52.52347576]
[1743454908190,0.05,1828.9,1828.8,53.07347576]
[1743454911026,0.05,1828.9,1828.8,53.00847576]
[1743454911830,0.05,1828.9,1828.8,47.18547576]
[1743454911987,0.05,1828.9,1828.8,53.00347576]
[1743454921330,0.05,1828.9,1828.8,51.9447]
[1743454921532,6.01601,1829.5,1828.9,3.55]
[1743454921839,6.01601,1829.5,1829.1,3.0]
[1743454922033,6.01601,1829.5,1829.2,6.063]
[1743454922256,0.7828,1829.3,1829.0,10.25]
[1743454922549,0.7828,1829.3,1829.2,5.76]
[1743454924402,0.7828,1829.3,1829.2,6.16867094]
[1743454925537,6.24937,1829.3,1829.2,6.16867094]
[1743454926035,0.7828,1829.3,1829.2,6.16867094]
[1743454928041,0.7828,1829.3,1829.2,5.76]
[1743454928438,1.3171,1829.5,1829.2,6.336]
[1743454928642,0.55,1829.5,1829.3,0.05465932]
[1743454932461,0.55,1829.5,1829.4,1.06477012]
[1743454932959,0.55,1829.5,1829.4,1.11941899]
[1743454933162,0.55,1829.5,1829.4,1.87517012]
[1743454933342,0.55,1829.5,1829.4,2.36268713]
[1743454936124,0.55,1829.5,1829.4,9.76377012]
[1743454936555,0.55,1829.5,1829.4,10.17519474]
[1743454936859,0.55,1829.5,1829.4,10.22984763]
[1743454937959,0.55,1829.5,1829.4,7.22984763]
[1743454938658,0.55,1829.5,1829.4,7.16619474]
[1743454939464,0.55,1829.5,1829.4,7.99950377]
[1743454942165,0.55,1829.5,1829.4,39.52650377]
[1743454942322,0.55,1829.5,1829.4,49.77650377]
[1743454945601,0.55,1829.5,1829.4,48.71173365]
[1743454946058,0.55,1829.5,1829.4,49.36625402]
[1743454946265,0.55,1829.5,1829.4,49.77532925]
[1743454952403,0.55,1829.5,1829.4,44.08532925]
[1743454952703,6.80937,1829.5,1829.4,32.5905956]
[1743454953003,1.3434,1829.5,1829.4,32.5905956]
[1743454953183,1.3434,1829.5,1829.4,31.527]
[1743454956103,1.3434,1829.5,1829.4,31.93657152]
[1743454957904,6.80937,1829.5,1829.4,31.93657152]
[1743454958279,1.3434,1829.5,1829.4,31.93657152]
[1743454958601,6.80937,1829.5,1829.4,31.93657152]
[1743454958902,11.49653892,1829.5,1829.4,31.93657152]
[1743454960201,5.46798,1828.9,1828.6,31.527]
[1743454960412,10.84844921,1828.8,1828.6,31.527]
[1743454960870,16.31675921,1828.8,1828.6,31.527]
[1743454961294,10.84844921,1828.8,1828.6,31.527]
[1743454961911,5.46836,1828.7,1828.6,31.527]
[1743454962965,10.84844921,1828.8,1828.6,31.527]
[1743454963864,5.46836,1828.7,1828.6,31.527]
[1743454964532,10.10004092,1828.7,1828.6,31.527]
[1743454964742,10.93214092,1828.7,1828.6,31.527]
[1743454965470,0.8321,1829.1,1828.6,37.15]
[1743454965768,6.29928,1829.1,1828.6,37.15]
[1743454965925,10.89592921,1829.1,1828.7,0.0546724]
[1743454966125,10.89592921,1829.1,1828.6,37.15]
[1743454966754,16.36335921,1829.1,1828.6,37.15]
[1743454967232,5.46754,1829.0,1828.6,37.15]
[1743454968602,4.59664921,1828.9,1828.6,31.527]
[1743454968885,8.46836,1828.7,1828.6,31.527]
[1743454969453,8.46836,1828.7,1828.4,5.626]
[1743454969972,8.46836,1828.7,1828.4,5.68068563]
[1743454970785,8.46836,1828.7,1828.4,5.626]
[1743454970986,8.46836,1828.7,1828.5,0.05468574]
[1743454970987,3.0,1828.7,1828.5,0.05468574]
[1743454971345,3.0,1828.7,1828.4,5.626]
[1743454972177,3.0,1828.7,1828.5,0.05468284]
[1743454972479,3.0,1828.7,1828.4,5.626]
[1743454973284,8.46842,1828.7,1828.4,5.626]
[1743454976360,13.93696,1828.7,1828.4,5.626]
[1743454977279,8.46842,1828.7,1828.4,5.626]
[1743454977498,13.93697,1828.7,1828.4,5.626]
[1743454979190,5.46871,1828.6,1828.4,5.626]
[1743454979374,6.28541,1828.6,1828.4,5.626]
[1743454979573,5.46896,1828.5,1828.4,5.626]
[1743454979899,6.28541,1828.6,1828.4,5.626]
[1743454980058,5.46956,1828.3,1828.2,47.358]
[1743454980383,5.46939,1828.4,1828.2,31.537]
[1743454980692,10.93879,1828.4,1828.2,31.537]
[1743454980888,5.46939,1828.4,1828.2,31.537]
[1743454981095,5.46956,1828.3,1828.2,31.537]
[1743454981778,8.46956,1828.3,1828.2,31.537]
[1743454981977,10.32311992,1828.3,1828.2,31.537]
[1743454982677,8.46956,1828.3,1828.2,31.537]
[1743454985376,0.7615,1828.8,1828.2,31.537]
[1743454985553,5.46863,1828.7,1828.3,0.7725]
[1743454985760,10.93704,1828.7,1828.3,0.7725]
[1743454985965,3.0,1828.6,1828.3,0.7725]
[1743454986589,8.46869,1828.6,1828.3,0.7725]
[1743454987693,3.0,1828.6,1828.3,0.7725]
[1743454987990,8.46867,1828.6,1828.3,0.7725]
[1743454988509,5.46906,1828.5,1828.3,0.40891436]
[1743454988706,8.4687,1828.6,1828.3,0.40891436]
[1743454989531,3.0,1828.6,1828.3,0.40891436]
[1743454989683,3.0,1828.6,1828.2,31.537]
[1743454989884,8.46876,1828.6,1828.2,31.537]
[1743454990223,5.46896,1828.5,1828.2,31.537]
[1743454990573,5.46931,1828.4,1828.2,31.537]
[1743454991505,5.46896,1828.5,1828.2,31.537]
[1743454991812,8.46867,1828.6,1828.2,31.537]
[1743454992014,13.93755,1828.6,1828.2,31.537]
[1743454992513,5.46902,1828.5,1828.2,31.537]
[1743454992719,5.46902,1828.5,1828.3,0.40952306]
[1743454993406,5.46902,1828.5,1828.4,0.40952306]
[1743454994787,10.93814,1828.5,1828.3,0.40952306]
[1743454994993,5.46902,1828.5,1828.3,0.40952306]
[1743454995315,10.93815,1828.5,1828.3,0.40952306]
[1743454995484,5.46902,1828.5,1828.3,0.40952306]
[1743454995684,13.93756,1828.6,1828.2,31.537]
[1743454995918,3.0,1828.6,1828.2,31.537]
[1743454996118,8.46866,1828.6,1828.2,31.537]
[1743454997121,3.0,1828.6,1828.2,31.537]
[1743454997924,8.46877,1828.6,1828.2,31.537]
[1743454998416,3.0,1828.6,1828.3,0.40981852]
[1743454999090,8.46868,1828.6,1828.3,0.40981852]
[1743454999289,8.46868,1828.6,1828.4,0.40981852]
[1743455000497,8.46868,1828.6,1828.5,0.40981852]
[1743455000889,9.10930474,1828.6,1828.5,0.40981852]
[1743455001389,9.88590474,1828.6,1828.5,0.40981852]
[1743455001803,8.46926,1828.4,1828.3,0.40981852]
[1743455002021,13.06590921,1828.4,1828.3,0.40981852]
[1743455002624,5.46956,1828.3,1828.2,31.537]
[1743455003192,8.46986,1828.2,1828.1,5.496]
[1743455003834,5.47026,1828.1,1827.9,0.82]
[1743455004038,5.47045,1828.0,1827.9,5.489]
[1743455004194,8.47075,1827.9,1827.8,31.547]
[1743455004399,10.32453492,1827.9,1827.8,31.547]
[1743455014446,5.47206,1827.5,1827.4,5.458]
[1743455014634,10.94422,1827.5,1827.3,5.457]
[1743455014830,5.47225,1827.4,1827.3,5.457]
[1743455015142,5.47206,1827.5,1827.3,5.457]
[1743455015518,5.47206,1827.5,1827.2,1.10299476]
[1743455015715,5.47225,1827.4,1827.3,5.453]
[1743455016161,5.47206,1827.5,1827.3,5.453]
[1743455016942,10.94418,1827.5,1827.3,5.453]
[1743455017647,5.47206,1827.5,1827.3,5.453]
[1743455017812,10.94421,1827.5,1827.3,5.453]
[1743455018543,5.47225,1827.4,1827.3,5.453]
[1743455018714,10.94471,1827.4,1827.1,31.606]
[1743455018913,5.47225,1827.4,1827.1,31.606]
[1743455019330,5.47268,1827.3,1827.2,5.44]
[1743455020752,5.47268,1827.3,1827.1,31.606]
[1743455021521,10.94546,1827.3,1827.1,31.606]
[1743455021722,5.47285,1827.2,1827.1,31.606]
[1743455022238,10.94538,1827.3,1827.1,31.606]
[1743455022648,5.47268,1827.3,1827.1,31.606]
[1743455022856,4.59664921,1827.6,1827.1,31.606]
[1743455023163,3.0,1827.5,1827.2,0.05472206]
[1743455023320,3.0,1827.5,1827.3,5.434]
[1743455023520,8.47208,1827.5,1827.3,5.434]
[1743455024026,3.0,1827.6,1827.3,5.434]
[1743455024227,7.59664921,1827.6,1827.3,5.9774]
[1743455024432,13.06830921,1827.6,1827.3,5.434]
[1743455025161,18.54017921,1827.6,1827.3,5.434]
[1743455025332,13.06830921,1827.6,1827.3,5.434]
[1743455025761,3.0,1827.6,1827.3,5.434]
[1743455025953,3.0,1827.6,1827.3,5.48871786]
[1743455026170,8.4712,1827.8,1827.3,6.02367571]
[1743455026471,10.06721921,1828.0,1827.3,6.02367571]
[1743455026753,8.47085,1827.9,1827.3,16.27367571]
[1743455027257,5.47148,1827.7,1827.4,5.426]
[1743455027437,5.47148,1827.7,1827.4,5.48071673]
[1743455028038,10.06772921,1827.8,1827.4,5.88875595]
[1743455028353,5.47144,1827.7,1827.4,5.88875595]
[1743455028953,10.94295,1827.7,1827.4,5.88875595]
[1743455029156,5.47144,1827.7,1827.4,5.88875595]
[1743455029452,10.94236,1827.8,1827.4,5.88875595]
[1743455029823,5.47136,1827.7,1827.4,5.83403922]
[1743455030428,10.06859921,1827.5,1827.4,0.40803922]
[1743455030752,13.06859921,1827.5,1827.4,0.40803922]
[1743455031744,13.06859921,1827.5,1827.3,5.415]
[1743455031945,5.47225,1827.4,1827.3,5.415]
[1743455032123,13.06859921,1827.5,1827.3,5.415]
[1743455032328,19.84768913,1827.5,1827.3,5.415]
[1743455032741,5.47225,1827.4,1827.3,5.415]
[1743455033826,5.47225,1827.4,1827.3,5.82493008]
[1743455036848,8.47195,1827.5,1827.3,5.82493008]
[1743455037021,3.0,1827.5,1827.3,5.82493008]
[1743455037356,8.47196,1827.5,1827.3,5.82493008]
[1743455037758,8.47196,1827.5,1827.3,5.415]
[1743455038059,13.94408,1827.5,1827.3,5.415]
[1743455038262,13.94409,1827.5,1827.3,5.415]
[1743455040253,5.47225,1827.4,1827.3,5.415]
[1743455041461,8.47196,1827.5,1827.3,5.415]
[1743455041636,8.47196,1827.5,1827.3,5.82526937]
[1743455041961,3.0,1827.5,1827.3,5.82526937]
[1743455042166,8.47196,1827.5,1827.3,5.82526937]
[1743455042361,8.47196,1827.5,1827.4,0.41026937]
[1743455043578,8.47196,1827.5,1827.3,5.415]
[1743455044062,5.47225,1827.4,1827.3,5.415]
[1743455046682,13.94406,1827.5,1827.3,5.415]
[1743455046883,8.47196,1827.5,1827.3,5.82529758]
[1743455047970,8.47196,1827.5,1827.4,0.41029758]
[1743455048871,10.06812921,1827.7,1827.4,0.41029758]
[1743455049174,5.47048,1828.0,1827.5,0.05472054]
[1743455049331,10.94053,1828.1,1827.5,10.30472054]
[1743455049531,5.47021,1828.1,1827.5,10.30472054]
[1743455049731,3.0,1828.0,1827.6,0.87711302]
[1743455050032,3.0,1828.0,1827.7,5.44270608]
[1743455050650,5.47021,1828.1,1827.7,5.44270608]
[1743455050949,3.0,1828.1,1827.7,5.44270608]
[1743455051147,3.0,1828.1,1827.8,0.41029758]
[1743455051673,3.0,1828.2,1827.8,0.99282734]
[1743455051868,5.46912,1828.5,1827.8,0.99282734]
[1743455052173,5.46957,1828.3,1827.8,11.24282734]
[1743455052334,5.46957,1828.3,1827.9,0.41029758]
[1743455052670,5.46937,1828.4,1828.0,31.61769541]
[1743455052974,8.46937,1828.4,1828.1,5.43969508]
[1743455053462,8.46937,1828.4,1828.1,5.385]
[1743455053773,13.93882,1828.4,1828.1,5.79529758]
[1743455053975,5.46963,1828.3,1828.1,5.79529758]
[1743455054639,13.93892,1828.4,1828.1,5.79529758]
[1743455054841,8.46937,1828.4,1828.1,5.8499927]
[1743455055974,5.46966,1828.3,1828.1,5.79529758]
[1743455056279,13.9389,1828.4,1828.1,5.79529758]
[1743455057190,8.46937,1828.4,1828.1,5.385]
[1743455057365,13.93882,1828.4,1828.1,5.385]
[1743455057567,13.93882,1828.4,1828.1,5.43969516]
[1743455058899,5.46986,1828.2,1828.0,31.563]
[1743455059065,5.47016,1828.1,1828.0,31.563]
[1743455059252,10.06650921,1828.2,1828.0,31.563]
[1743455059658,15.53657921,1828.2,1828.0,31.563]
[1743455059891,5.47016,1828.1,1828.0,31.563]
[1743455061094,5.47016,1828.1,1827.9,5.372]
[1743455063591,5.46986,1828.2,1827.9,5.372]
[1743455063892,10.93995,1828.2,1827.9,5.372]
[1743455065087,5.46973,1828.3,1828.0,0.7896]
[1743455065283,10.93949,1828.3,1828.0,0.7896]
[1743455065792,5.46987,1828.2,1828.0,0.7896]
[1743455065962,10.93993,1828.2,1828.0,0.7896]
[1743455066295,5.46987,1828.2,1828.0,0.7896]
[1743455066589,10.9399,1828.2,1828.0,0.7896]
[1743455067543,5.46987,1828.2,1828.0,0.7896]
[1743455067800,10.93998,1828.2,1828.0,0.7896]
[1743455068175,5.46987,1828.2,1828.0,0.7896]
[1743455070197,10.93994,1828.2,1828.0,0.7896]
[1743455070360,5.46987,1828.2,1828.0,0.7896]
[1743455070563,5.47016,1828.1,1828.0,0.7896]
[1743455071677,5.46987,1828.2,1828.0,0.7896]
[1743455071996,10.93988,1828.2,1828.0,0.7896]
[1743455072713,5.46987,1828.2,1828.0,0.7896]
[1743455075131,5.46987,1828.2,1828.0,1.19778292]
[1743455076221,5.47016,1828.1,1828.0,0.40818292]
[1743455076721,5.47016,1828.1,1828.0,5.73018292]
[1743455077009,5.47016,1828.1,1828.0,5.322]
[1743455078116,5.47016,1828.1,1828.0,5.73018292]
[1743455083121,5.47016,1828.1,1828.0,0.40818292]
[1743455083326,5.47016,1828.1,1828.0,5.71218292]
[1743455084319,7.469683,1828.1,1828.0,0.40818292]
[1743455085091,5.47075,1827.9,1827.8,5.302]
[1743455086091,10.94045,1828.1,1827.8,6.1291]
[1743455086351,0.833,1828.3,1827.8,6.59418794]
[1743455086539,0.833,1828.3,1827.9,1.54121797]
[1743455086540,10.93941,1828.3,1827.9,1.54121797]
[1743455086835,10.93955,1828.3,1827.9,1.54121797]
[1743455086998,10.93955,1828.3,1827.9,1.48651879]
[1743455087210,5.46989,1828.2,1827.9,1.48651879]
[1743455087773,10.93995,1828.2,1828.0,0.41038255]
[1743455088666,5.46989,1828.2,1828.0,0.41038255]
[1743455088854,5.46989,1828.2,1828.1,0.41038255]
[1743455093879,10.93932,1828.3,1828.1,0.41038255]
[1743455094566,5.46986,1828.2,1828.1,0.41038255]
[1743455095071,5.46986,1828.2,1827.9,1.48651879]
[1743455096171,5.46986,1828.2,1828.0,0.41039458]
[1743455096533,10.93987,1828.2,1828.0,0.41039458]
[1743455096732,5.47016,1828.1,1828.0,0.41039458]
[1743455096934,5.46999,1828.2,1828.0,0.41039458]
[1743455097892,5.46967,1828.3,1828.1,0.41039458]
[1743455099190,0.7832,1828.9,1828.3,0.8143]
[1743455099355,5.46699,1829.2,1828.5,0.8143]
[1743455099552,11.559109,1829.2,1828.7,0.8143]
[1743455099790,5.46699,1829.2,1828.8,0.05467335]
[1743455100176,5.46634,1829.4,1828.9,0.8143]
[1743455100368,10.93279,1829.4,1829.0,5.35566629]
[1743455100600,5.46634,1829.4,1829.0,5.35566629]
[1743455100798,5.46599,1829.5,1829.1,0.8143]
[1743455101073,5.46627,1829.4,1829.1,1.43129663]
[1743455101703,0.7832,1829.7,1829.1,0.8143]
[1743455101899,5.46746,1829.0,1828.9,0.41039458]
[1743455102077,5.46746,1829.0,1828.8,5.322]
[1743455102078,10.9352,1829.0,1828.8,5.322]
[1743455102277,5.46776,1828.9,1828.8,5.322]
[1743455103026,5.46836,1828.7,1828.6,31.553]
[1743455103231,5.46806,1828.8,1828.7,5.322]
[1743455118066,5.46675,1829.3,1828.8,0.8034]
[1743455118220,5.46606,1829.5,1829.0,0.8034]
[1743455118412,5.46606,1829.5,1829.1,5.35366437]
[1743455118720,5.46606,1829.5,1829.2,0.53536644]
[1743455119250,10.93225,1829.5,1829.2,0.53536644]
[1743455119561,5.46629,1829.4,1829.2,0.53536644]
[1743455120821,5.46657,1829.3,1829.2,0.53536644]
[1743455121137,5.46657,1829.3,1829.1,5.299]
[1743455121339,5.46629,1829.4,1829.1,5.299]
[1743455121340,10.93283,1829.4,1829.1,5.299]
[1743455121855,10.93335,1829.3,1829.1,5.299]
[1743455122025,5.46658,1829.3,1829.1,5.299]
[1743455122538,5.46687,1829.2,1829.1,5.299]